bitfinex/quotes_BTCUSD_20240908
["timestamp","ask_amount","ask_price","bid_price","bid_amount"]
[1725816353530,0.15531,54307.0,54304.0,0.0692]
[1725816355053,0.15131,54307.0,54304.0,0.0692]
[1725816355774,0.15531,54307.0,54304.0,0.0692]
[1725816356471,0.15131,54307.0,54304.0,0.0692]
[1725816356688,0.15131,54307.0,54303.0,0.14732]
[1725816356689,0.15331,54307.0,54303.0,0.14732]
[1725816357176,0.14931,54307.0,54303.0,0.14732]
[1725816357438,0.14931,54307.0,54304.0,0.147318]
[1725816357689,0.14931,54307.0,54306.0,0.147313]
[1725816357690,0.005,54307.0,54306.0,0.147313]
[1725816357907,0.005,54307.0,54306.0,0.5389124]
[1725816358131,0.005,54307.0,54306.0,0.9192384]
[1725816358132,0.002,54307.0,54306.0,0.9192384]
[1725816358370,0.004,54307.0,54306.0,0.9192384]
[1725816358604,0.002,54307.0,54306.0,0.9192384]
[1725816358846,0.1,54315.0,54312.0,0.0857]
[1725816359092,0.147294,54313.0,54312.0,0.0857]
[1725816359344,0.1,54315.0,54308.0,0.380315]
[1725816359556,0.147293,54314.0,54310.0,0.147301]
[1725816359774,0.147293,54314.0,54310.0,0.220301]
[1725816360423,0.147287,54316.0,54311.0,0.147298]
[1725816360654,0.247289,54315.0,54311.0,0.147298]
[1725816361742,0.248289,54315.0,54311.0,0.147298]
[1725816361958,0.247289,54315.0,54311.0,0.148926]
[1725816362186,0.248103,54315.0,54311.0,0.148926]
[1725816362417,0.147292,54314.0,54311.0,0.001628]
[1725816362642,0.103814,54315.0,54311.0,0.001628]
[1725816362855,0.003814,54315.0,54311.0,0.001628]
[1725816363066,0.151103,54315.0,54311.0,0.148926]
[1725816364204,0.003814,54315.0,54311.0,0.001628]
[1725816364415,0.003814,54315.0,54313.0,0.147292]
[1725816364875,0.001814,54315.0,54313.0,0.147292]
[1725816365090,0.001,54314.0,54313.0,0.147292]
[1725816365542,0.000814,54315.0,54312.0,0.147296]
[1725816365988,0.003814,54315.0,54312.0,0.147296]
[1725816366217,0.002814,54315.0,54312.0,0.147296]
[1725816367149,0.002814,54315.0,54314.0,0.147291]
[1725816367401,0.000814,54315.0,54314.0,0.147291]
[1725816367616,0.150103,54315.0,54311.0,0.001628]
[1725816367851,0.20532296,54315.0,54311.0,0.148925]
[1725816368065,0.05521996,54314.0,54311.0,0.148925]
[1725816368291,0.05521996,54314.0,54311.0,0.001628]
[1725816368292,0.12201996,54314.0,54311.0,0.001628]
[1725816368519,0.05521996,54313.0,54311.0,0.001628]
[1725816369236,0.05521996,54313.0,54311.0,0.148927]
[1725816370150,0.05525869,54313.0,54311.0,0.148927]
[1725816370808,0.05525869,54313.0,54311.0,0.149927]
[1725816371527,0.05525869,54312.0,54311.0,0.148927]
[1725816371744,0.05525869,54312.0,54311.0,0.149927]
[1725816371960,0.05725869,54313.0,54311.0,0.001628]
[1725816372411,0.05525869,54312.0,54311.0,0.149926]
[1725816372654,0.05525869,54312.0,54311.0,0.148926]
[1725816373094,0.06025869,54312.0,54311.0,0.148926]
[1725816373759,0.06525869,54312.0,54311.0,0.148926]
[1725816374046,0.01,54312.0,54311.0,0.148926]
[1725816374290,0.01,54312.0,54311.0,0.516525]
[1725816374997,0.05528616,54316.0,54311.0,0.369227]
[1725816375452,0.05528616,54316.0,54312.0,0.083]
[1725816375681,0.20257116,54317.0,54313.0,0.147292]
[1725816375908,0.38692617,54320.0,54313.0,0.147292]
[1725816375909,0.05528616,54318.0,54314.0,0.083]
[1725816376177,0.000814,54321.0,54320.0,0.736375]
[1725816376411,0.000814,54321.0,54320.0,1.27775904]
[1725816378273,0.001814,54321.0,54320.0,1.28375904]
[1725816378730,0.000814,54321.0,54320.0,0.888575]
[1725816378959,0.000814,54321.0,54320.0,0.594025]
[1725816379189,0.000814,54321.0,54320.0,0.230275]
[1725816379413,0.001814,54321.0,54320.0,0.237275]
[1725816379634,0.000814,54321.0,54320.0,0.441825]
[1725816380100,0.000814,54321.0,54320.0,0.451825]
[1725816380101,0.001814,54321.0,54320.0,0.451825]
[1725816380565,0.001814,54321.0,54320.0,0.449825]
[1725816381228,0.001814,54321.0,54320.0,0.155275]
[1725816381457,0.000814,54321.0,54320.0,0.147275]
[1725816381709,0.001814,54321.0,54320.0,0.154275]
[1725816382151,0.001814,54321.0,54320.0,0.448825]
[1725816382374,0.002814,54321.0,54320.0,0.457825]
[1725816382599,0.002814,54321.0,54320.0,0.448825]
[1725816382879,0.151086,54321.0,54320.0,0.015]
[1725816383098,0.516431,54321.0,54320.0,0.015]
[1725816384364,0.221886,54321.0,54320.0,0.015]
[1725816387446,0.074614,54321.0,54320.0,0.015]
[1725816389861,0.003814,54321.0,54320.0,0.015]
[1725816390086,0.003814,54321.0,54320.0,0.539825]
[1725816392237,0.003814,54321.0,54320.0,0.098]
[1725816392475,0.003814,54321.0,54320.0,0.162275]
[1725816393446,0.003814,54321.0,54320.0,0.456825]
[1725816393680,0.003814,54321.0,54320.0,0.162275]
[1725816393894,0.003814,54321.0,54320.0,0.015]
[1725816394118,0.003814,54321.0,54320.0,0.162275]
[1725816394356,0.003814,54321.0,54320.0,0.015]
[1725816397874,0.151086,54321.0,54320.0,0.015]
[1725816399029,0.220586,54321.0,54320.0,0.015]
[1725816399266,0.294545,54321.0,54320.0,0.015]
[1725816399503,0.441817,54321.0,54320.0,0.015]
[1725816403677,0.736362,54321.0,54320.0,0.015]
[1725816406013,1.13677589,54321.0,54320.0,0.015]
[1725816406252,1.23677589,54321.0,54320.0,0.015]
[1725816406902,1.23677589,54321.0,54320.0,0.008]
[1725816407121,0.736402,54318.0,54317.0,0.00163]
[1725816408913,0.738402,54318.0,54317.0,0.00163]
[1725816409124,0.741402,54318.0,54317.0,0.00163]
[1725816409351,0.79659912,54318.0,54317.0,0.00163]
[1725816409576,0.79660106,54318.0,54317.0,0.00163]
[1725816410296,0.79460106,54318.0,54317.0,0.00163]
[1725816410509,0.79760106,54318.0,54317.0,0.00163]
[1725816410956,0.82520059,54318.0,54317.0,0.00163]
[1725816411667,0.79760003,54318.0,54317.0,0.00163]
[1725816412800,0.79760003,54318.0,54317.0,0.07413]
[1725816413876,0.742402,54318.0,54317.0,0.07413]
[1725816419696,0.742402,54318.0,54311.0,0.148927]
[1725816419922,0.147288,54316.0,54311.0,0.148927]
[1725816420128,0.147289,54315.0,54311.0,0.148927]
[1725816422560,0.100815,54321.0,54320.0,0.147275]
[1725816422784,0.100815,54321.0,54315.0,0.147288]
[1725816422785,0.001,54316.0,54315.0,0.147288]
[1725816423015,0.001,54316.0,54315.0,0.604465]
[1725816423250,0.148089,54321.0,54316.0,0.147285]
[1725816424479,0.14440698,54321.0,54316.0,0.147285]
[1725816424883,0.14640698,54321.0,54316.0,0.147285]
[1725816425659,0.14840698,54321.0,54316.0,0.147285]
[1725816426911,0.298547,54321.0,54315.0,0.1626]
[1725816427107,0.2065151,54321.0,54316.0,0.147284]
[1725816427441,0.0552411,54320.0,54316.0,0.147284]
[1725816428486,0.151274,54321.0,54316.0,0.147284]
[1725816428487,0.0552411,54319.0,54316.0,0.147284]
[1725816429108,0.0552411,54318.0,54317.0,0.147283]
[1725816429310,0.0552411,54318.0,54316.0,0.147285]
[1725816429522,0.0552411,54319.0,54316.0,0.147285]
[1725816429983,0.0552411,54318.0,54316.0,0.147285]
[1725816430627,0.05526805,54318.0,54316.0,0.147285]
[1725816431259,0.05526805,54318.0,54315.0,0.1626]
[1725816431472,0.05526805,54317.0,54315.0,0.309888]
[1725816431897,0.05526805,54317.0,54316.0,0.002]
[1725816432341,0.05526805,54317.0,54315.0,0.309888]
[1725816432820,0.05526805,54317.0,54315.0,0.311888]
[1725816433043,0.05526805,54317.0,54316.0,0.00163]
[1725816433955,0.05526805,54317.0,54316.0,0.00563]
[1725816434395,0.05526805,54317.0,54316.0,0.00463]
[1725816434635,0.05526805,54317.0,54316.0,0.00663]
[1725816435275,0.05526805,54317.0,54316.0,0.00163]
[1725816435500,0.05726805,54317.0,54316.0,0.00163]
[1725816437118,0.05726805,54317.0,54316.0,0.148916]
[1725816437353,0.05726805,54317.0,54316.0,0.00163]
[1725816437569,0.05626805,54317.0,54316.0,0.00163]
[1725816438228,0.05526805,54317.0,54316.0,0.00163]
[1725816438685,0.08371708,54318.0,54316.0,0.00163]
[1725816438911,0.05528201,54317.0,54316.0,0.00163]
[1725816439145,0.08374147,54318.0,54316.0,0.00163]
[1725816439369,1.23895413,54317.0,54316.0,0.00163]
[1725816439592,0.35785533,54317.0,54316.0,0.00163]
[1725816439809,0.33120895,54317.0,54316.0,0.00163]
[1725816440034,0.62477595,54317.0,54316.0,0.00163]
[1725816440260,0.62577595,54317.0,54316.0,0.00163]
[1725816440736,0.62477878,54317.0,54316.0,0.00163]
[1725816440962,0.91934578,54317.0,54316.0,0.00163]
[1725816441187,0.847417,54317.0,54316.0,0.00263]
[1725816441414,0.66342171,54317.0,54316.0,0.00363]
[1725816441645,0.62477874,54317.0,54316.0,0.00163]
[1725816441866,0.63577874,54317.0,54316.0,0.00263]
[1725816442568,0.64677874,54317.0,54316.0,0.00363]
[1725816445974,0.67442171,54317.0,54316.0,0.00363]
[1725816446478,0.56385,54317.0,54316.0,0.00363]
[1725816446708,0.55285,54317.0,54316.0,0.00263]
[1725816447159,0.56385,54317.0,54316.0,0.00363]
[1725816447604,0.54185,54317.0,54316.0,0.00163]
[1725816447820,0.55985,54317.0,54316.0,0.00363]
[1725816448036,0.55985,54317.0,54316.0,0.00263]
[1725816448488,0.56685,54317.0,54316.0,0.00363]
[1725816448922,0.147288,54315.0,54314.0,0.0847]
[1725816449142,0.23023719,54315.0,54314.0,0.0847]
[1725816450292,0.23023719,54315.0,54311.0,0.086328]
[1725816450293,0.38252619,54315.0,54311.0,0.086328]
[1725816450524,0.49719132,54312.0,54311.0,0.001628]
[1725816450978,0.441891,54312.0,54311.0,0.001628]
[1725816451207,0.147297,54312.0,54311.0,0.001628]
[1725816451710,0.52484149,54312.0,54311.0,0.001628]
[1725816451954,0.441891,54312.0,54311.0,0.001628]
[1725816452211,0.55248992,54312.0,54311.0,0.001628]
[1725816452445,0.441891,54312.0,54311.0,0.001628]
[1725816453573,0.442891,54312.0,54311.0,0.001628]
[1725816454242,0.443891,54312.0,54311.0,0.001628]
[1725816454463,0.52681587,54312.0,54311.0,0.001628]
[1725816455121,0.147303,54310.0,54307.0,0.1586]
[1725816455561,0.37951887,54312.0,54307.0,0.1586]
[1725816455562,0.05727728,54312.0,54307.0,0.1586]
[1725816455780,0.002,54312.0,54308.0,0.147306]
[1725816456036,0.148297,54312.0,54308.0,0.147306]
[1725816456259,0.147297,54312.0,54308.0,0.147306]
[1725816456517,0.05527728,54313.0,54308.0,0.147306]
[1725816456518,0.05527728,54313.0,54310.0,0.1645]
[1725816456742,0.147293,54314.0,54311.0,0.0727]
[1725816456743,0.20257028,54314.0,54311.0,0.0727]
[1725816457422,0.001,54312.0,54311.0,0.0727]
[1725816457643,0.001,54312.0,54311.0,0.07433]
[1725816457913,0.20256428,54316.0,54313.0,0.0727]
[1725816458160,0.007,54314.0,54313.0,0.0727]
[1725816458379,0.004,54314.0,54313.0,0.219994]
[1725816459333,0.004,54314.0,54313.0,0.607382]
[1725816459557,0.006,54316.0,54315.0,0.147288]
[1725816460461,0.000815,54318.0,54315.0,0.147288]
[1725816461327,0.006,54316.0,54315.0,0.148288]
[1725816461767,0.000815,54318.0,54317.0,0.311783]
[1725816461997,0.008815,54318.0,54317.0,0.900917]
[1725816462199,0.000815,54318.0,54317.0,0.99858741]
[1725816462929,0.008815,54318.0,54317.0,0.99858741]
[1725816463402,0.000815,54318.0,54317.0,0.99858741]
[1725816463842,0.006815,54318.0,54317.0,0.99958741]
[1725816464739,0.012815,54318.0,54317.0,1.00058741]
[1725816465203,0.006815,54318.0,54317.0,0.99958741]
[1725816465413,0.000815,54318.0,54317.0,0.99858741]
[1725816465890,0.001815,54318.0,54317.0,0.99858741]
[1725816466325,0.000815,54318.0,54317.0,0.99858741]
[1725816470224,0.000815,54318.0,54317.0,1.00058741]
[1725816470442,0.000815,54318.0,54317.0,1.00358741]
[1725816472893,0.000815,54318.0,54317.0,1.00158741]
[1725816473130,0.000815,54318.0,54317.0,0.61335]
[1725816473592,0.000815,54318.0,54317.0,0.314783]
[1725816474036,0.000815,54318.0,54317.0,0.61135]
[1725816474258,0.000815,54318.0,54317.0,0.53865]
[1725816474473,0.000815,54318.0,54317.0,0.44685]
[1725816474680,0.000815,54318.0,54317.0,0.44385]
[1725816475117,0.000815,54318.0,54317.0,0.44485]
[1725816475327,0.000815,54318.0,54317.0,0.44285]
[1725816475743,0.000815,54318.0,54317.0,0.44485]
[1725816476155,0.000815,54318.0,54317.0,0.44285]
[1725816476568,0.000815,54318.0,54317.0,0.44385]
[1725816476780,0.000815,54318.0,54317.0,0.44285]
[1725816477006,0.000815,54318.0,54317.0,0.44485]
[1725816477231,0.004815,54318.0,54317.0,0.44485]
[1725816477444,0.004815,54318.0,54317.0,0.44185]
[1725816477651,0.007815,54318.0,54317.0,0.44185]
[1725816479779,0.003815,54318.0,54317.0,0.44185]
[1725816479990,0.000815,54318.0,54317.0,0.44185]
[1725816480228,0.004815,54318.0,54317.0,0.44185]
[1725816480452,0.007815,54318.0,54317.0,0.44185]
[1725816482557,0.007815,54318.0,54314.0,0.09183]
[1725816482784,0.007815,54318.0,54317.0,0.44185]
[1725816483238,0.000815,54318.0,54317.0,0.44185]
[1725816483471,0.007815,54318.0,54317.0,0.44185]
[1725816483706,0.007815,54318.0,54317.0,0.736417]
[1725816483918,0.007815,54318.0,54317.0,0.60465]
[1725816484360,0.004815,54318.0,54317.0,0.60465]
[1725816484614,0.000815,54318.0,54317.0,0.60465]
[1725816485245,0.001815,54318.0,54317.0,0.60465]
[1725816486315,0.000815,54318.0,54317.0,0.60465]
[1725816487436,0.000815,54318.0,54317.0,0.60565]
[1725816487659,0.000815,54318.0,54317.0,0.60465]
[1725816487877,0.000815,54318.0,54317.0,0.60565]
[1725816488085,0.001815,54318.0,54317.0,0.44285]
[1725816488318,0.000815,54318.0,54317.0,0.44185]
[1725816489157,0.000815,54318.0,54317.0,0.147283]
[1725816489382,0.000815,54318.0,54315.0,0.147287]
[1725816489669,0.148097,54318.0,54314.0,0.14892]
[1725816489891,0.0714,54317.0,54314.0,0.14892]
[1725816490355,0.0714,54317.0,54314.0,0.00163]
[1725816490356,0.218685,54317.0,54314.0,0.00163]
[1725816490801,0.218685,54317.0,54314.0,0.00263]
[1725816491027,0.0714,54317.0,54314.0,0.148921]
[1725816495232,0.0764,54317.0,54314.0,0.148921]
[1725816495892,0.0734,54317.0,54314.0,0.148921]
[1725816496039,0.0804,54317.0,54314.0,0.149921]
[1725816496262,0.0784,54317.0,54314.0,0.149921]
[1725816496616,0.0844,54317.0,54314.0,0.150921]
[1725816496880,0.013,54317.0,54314.0,0.310021]
[1725816497121,0.013,54317.0,54316.0,0.749244]
[1725816497122,0.01,54317.0,54316.0,0.749244]
[1725816497545,0.01,54317.0,54316.0,1.29023707]
[1725816497547,0.002,54317.0,54316.0,1.29023707]
[1725816497761,0.000815,54318.0,54317.0,1.191084]
[1725816497990,0.000815,54318.0,54317.0,1.29021907]
[1725816499594,0.001815,54318.0,54317.0,1.29821907]
[1725816500291,0.001815,54318.0,54317.0,1.00365207]
[1725816500539,0.002815,54318.0,54317.0,1.01265207]
[1725816500996,0.001815,54318.0,54317.0,1.00465207]
[1725816501232,0.002815,54318.0,54317.0,1.01265207]
[1725816501687,0.002815,54318.0,54317.0,0.94315207]
[1725816505239,0.002815,54318.0,54317.0,0.844017]
[1725816511813,0.002815,54318.0,54317.0,0.45885]
[1725816513907,0.002815,54318.0,54317.0,0.164283]
[1725816514420,0.002815,54318.0,54317.0,0.45885]
[1725816515123,0.002815,54318.0,54317.0,0.53215]
[1725816516504,0.002815,54318.0,54317.0,0.53378]
[1725816520253,0.002815,54318.0,54317.0,0.46048]
[1725816528378,0.002815,54318.0,54317.0,0.755047]
[1725816530787,0.05524445,54325.0,54320.0,0.29455]
[1725816531253,0.05524445,54325.0,54321.0,0.14727]
[1725816533066,0.05524445,54325.0,54322.0,0.147269]
[1725816534419,0.22016,54326.0,54322.0,0.147269]
[1725816534652,0.05524633,54325.0,54322.0,0.147269]
[1725816534932,0.000815,54328.0,54327.0,0.147256]
[1725816535180,0.000815,54328.0,54327.0,0.69440434]
[1725816535440,0.000815,54328.0,54327.0,0.98891634]
[1725816535661,0.000815,54328.0,54327.0,1.57794034]
[1725816535915,0.000815,54328.0,54327.0,1.28342834]
[1725816536390,0.000815,54328.0,54327.0,1.29342834]
[1725816536391,0.001815,54328.0,54327.0,1.29342834]
[1725816537030,0.002815,54328.0,54327.0,1.30542834]
[1725816537248,0.001815,54328.0,54327.0,1.29542834]
[1725816537490,0.000815,54328.0,54327.0,1.28342834]
[1725816537968,0.001815,54328.0,54327.0,1.29742834]
[1725816538669,0.002815,54328.0,54327.0,1.30842834]
[1725816538894,0.001815,54328.0,54327.0,1.29742834]
[1725816539018,0.002815,54328.0,54327.0,1.30842834]
[1725816543934,0.001815,54328.0,54327.0,1.29442834]
[1725816545429,0.001815,54328.0,54327.0,1.29742834]
[1725816545656,0.002815,54328.0,54327.0,1.30842834]
[1725816548182,0.001815,54328.0,54327.0,1.29442834]
[1725816548395,0.000815,54328.0,54327.0,1.28342834]
[1725816548641,0.000815,54328.0,54327.0,1.30542834]
[1725816548642,0.002815,54328.0,54327.0,1.30542834]
[1725816551883,0.000815,54328.0,54327.0,1.28342834]
[1725816552333,0.4708,54343.0,54327.0,1.28342834]
[1725816552334,0.38642494,54343.0,54341.0,0.147217]
[1725816552558,0.02540804,54345.0,54341.0,0.147217]
[1725816553055,0.295227,54347.0,54342.0,0.147214]
[1725816553944,0.17300094,54346.0,54342.0,0.147214]
[1725816554440,0.1,54345.0,54342.0,0.147214]
[1725816554670,0.107,54345.0,54342.0,0.147214]
[1725816555111,0.115,54345.0,54342.0,0.147214]
[1725816555346,0.266007,54345.0,54342.0,0.147214]
[1725816555815,0.274007,54345.0,54342.0,0.148214]
[1725816556042,0.274007,54345.0,54342.0,0.149214]
[1725816556262,0.108,54345.0,54342.0,0.002]
[1725816556525,0.008,54345.0,54342.0,0.002]
[1725816556756,0.008,54345.0,54343.0,0.147211]
[1725816557444,0.008,54345.0,54344.0,0.14721]
[1725816557673,0.015,54345.0,54344.0,0.14721]
[1725816558147,0.12583835,54347.0,54344.0,0.14721]
[1725816558370,0.015,54345.0,54344.0,0.14721]
[1725816558598,0.007,54345.0,54344.0,0.14721]
[1725816558815,0.007,54345.0,54344.0,0.14821]
[1725816559026,0.008,54345.0,54344.0,0.14821]
[1725816559273,0.014,54345.0,54344.0,0.14821]
[1725816559503,0.014,54345.0,54344.0,0.14921]
[1725816559745,0.014,54345.0,54344.0,0.14821]
[1725816559746,0.006,54345.0,54344.0,0.14821]
[1725816560243,0.006,54345.0,54344.0,0.83035]
[1725816560917,0.006,54345.0,54344.0,1.19517]
[1725816561159,0.00982,54347.0,54346.0,0.736022]
[1725816561863,0.00082,54347.0,54346.0,0.736022]
[1725816562781,0.00082,54347.0,54346.0,0.741022]
[1725816564168,0.00082,54347.0,54346.0,0.746022]
[1725816564402,0.00082,54347.0,54346.0,0.816422]
[1725816564939,0.00082,54347.0,54346.0,0.811422]
[1725816565165,0.00082,54347.0,54346.0,0.810422]
[1725816565394,0.00082,54347.0,54346.0,0.814422]
[1725816565642,0.00082,54347.0,54346.0,0.806422]
[1725816565892,0.00082,54347.0,54346.0,0.811422]
[1725816566127,0.00082,54347.0,54346.0,0.816422]
[1725816566339,0.00082,54347.0,54346.0,0.811422]
[1725816566559,0.00082,54347.0,54346.0,0.814422]
[1725816567670,0.00082,54347.0,54346.0,0.809422]
[1725816567908,0.00082,54347.0,54346.0,0.806422]
[1725816568177,0.00082,54347.0,54346.0,1.107831]
[1725816568365,0.00082,54347.0,54346.0,1.100831]
[1725816568817,0.00082,54347.0,54346.0,1.110831]
[1725816570895,0.00082,54347.0,54346.0,1.105831]
[1725816571127,0.00082,54347.0,54346.0,1.108831]
[1725816571357,0.00082,54347.0,54346.0,1.103831]
[1725816571809,0.00082,54347.0,54346.0,1.105831]
[1725816572300,0.00082,54347.0,54346.0,1.110831]
[1725816574163,0.00082,54347.0,54346.0,1.20864481]
[1725816574397,0.00082,54347.0,54346.0,1.29694481]
[1725816574612,0.00082,54347.0,54346.0,1.29194481]
[1725816574848,0.00082,54347.0,54346.0,1.29794481]
[1725816575078,0.00082,54347.0,54346.0,1.29494481]
[1725816575314,0.00082,54347.0,54346.0,1.29794481]
[1725816575557,0.00082,54347.0,54346.0,1.29494481]
[1725816576273,0.00082,54347.0,54346.0,1.29794481]
[1725816576500,0.00082,54347.0,54346.0,1.59235381]
[1725816578053,0.00082,54347.0,54346.0,1.59435381]
[1725816579830,0.00082,54347.0,54346.0,1.88876281]
[1725816580905,0.00082,54347.0,54346.0,1.58935381]
[1725816581120,0.00082,54347.0,54346.0,1.58835381]
[1725816581335,0.00082,54347.0,54346.0,1.59035381]
[1725816581548,0.00082,54347.0,54346.0,1.59535381]
[1725816581753,0.19219457,54368.0,54367.0,0.147148]
[1725816581965,0.0188,54372.0,54367.0,0.147148]
[1725816581966,0.0188,54372.0,54368.0,0.147144]
[1725816582422,0.0188,54372.0,54367.0,0.294296]
[1725816582423,0.0188,54372.0,54369.0,0.147142]
[1725816582655,0.0188,54372.0,54369.0,0.441427]
[1725816583115,0.18761,54373.0,54369.0,0.441427]
[1725816583342,0.11266226,54373.0,54369.0,0.441427]
[1725816583762,0.08761,54373.0,54369.0,0.147142]
[1725816583992,0.01081,54370.0,54369.0,0.147142]
[1725816584209,0.00081,54370.0,54369.0,0.147142]
[1725816584627,0.00381,54370.0,54369.0,0.147142]
[1725816584838,0.00081,54370.0,54369.0,0.147142]
[1725816585284,0.02461,54370.0,54369.0,0.147142]
[1725816585493,0.02461,54370.0,54357.0,0.0887]
[1725816585494,0.1056,54365.0,54363.0,0.147157]
[1725816585703,0.08875891,54364.0,54360.0,0.147165]
[1725816585919,0.08875891,54364.0,54361.0,0.147163]
[1725816586576,0.08875891,54364.0,54358.0,0.294343]
[1725816586577,0.23591491,54364.0,54359.0,0.147167]
[1725816586823,0.08875891,54364.0,54360.0,0.147165]
[1725816587496,0.14716,54363.0,54358.0,0.14717]
[1725816587679,0.23591491,54364.0,54361.0,0.001]
[1725816587931,0.23591591,54364.0,54361.0,0.001]
[1725816588133,0.24091591,54364.0,54361.0,0.001]
[1725816588339,0.24091591,54364.0,54360.0,0.147166]
[1725816588340,0.09375891,54364.0,54360.0,0.147166]
[1725816588563,0.23591691,54364.0,54358.0,0.14717]
[1725816588780,0.23791691,54364.0,54359.0,0.147169]
[1725816588994,0.147158,54363.0,54361.0,0.001]
[1725816589931,0.09575891,54364.0,54361.0,0.001]
[1725816589932,0.005,54364.0,54361.0,0.001]
[1725816590169,0.005,54364.0,54360.0,0.147165]
[1725816590170,0.147156,54364.0,54360.0,0.147165]
[1725816590403,0.157156,54364.0,54361.0,0.001]
[1725816590627,0.152156,54364.0,54360.0,0.147165]
[1725816590835,0.008,54363.0,54361.0,0.001]
[1725816591046,0.008,54363.0,54360.0,0.147165]
[1725816591273,0.008,54363.0,54361.0,0.001]
[1725816591497,0.15516,54363.0,54361.0,0.001]
[1725816591780,0.147161,54362.0,54361.0,0.001]
[1725816592001,0.147161,54362.0,54360.0,0.001]
[1725816592002,0.14716,54363.0,54357.0,0.294349]
[1725816592206,0.147161,54362.0,54361.0,0.001]
[1725816593268,0.441484,54362.0,54361.0,0.001]
[1725816593478,0.147165,54361.0,54356.0,0.147177]
[1725816594357,0.005,54362.0,54356.0,0.147177]
[1725816594358,0.147168,54360.0,54356.0,0.147177]
[1725816594559,0.14717,54359.0,54353.0,0.294366]
[1725816594771,0.14717,54359.0,54355.0,0.147178]
[1725816594977,0.14717,54359.0,54356.0,0.001]
[1725816595199,0.14717,54359.0,54355.0,0.147178]
[1725816595680,0.14717,54359.0,54335.0,0.8612]
[1725816595681,0.09375891,54360.0,54343.0,0.001628]
[1725816595884,0.147186,54353.0,54349.0,0.147194]
[1725816596331,0.294361,54355.0,54346.0,0.0857]
[1725816596588,0.147186,54353.0,54349.0,0.147194]
[1725816596818,0.294361,54355.0,54350.0,0.147193]
[1725816597244,0.08875891,54356.0,54345.0,0.294413]
[1725816597245,0.11375223,54356.0,54345.0,0.294413]
[1725816597461,0.11375223,54356.0,54346.0,0.147204]
[1725816597462,0.147192,54351.0,54346.0,0.147204]
[1725816598101,0.147192,54351.0,54350.0,0.001]
[1725816598354,0.55373291,54351.0,54350.0,0.001]
[1725816598590,0.34319898,54351.0,54349.0,0.003]
[1725816598799,0.441582,54350.0,54349.0,0.003]
[1725816599283,0.147194,54350.0,54349.0,0.003]
[1725816599970,0.147194,54350.0,54346.0,0.147203]
[1725816600205,0.147194,54350.0,54345.0,0.0739]
[1725816600420,0.147194,54350.0,54346.0,0.159832]
[1725816601103,0.147194,54350.0,54346.0,0.154832]
[1725816601316,0.149194,54350.0,54346.0,0.148832]
[1725816601553,0.004,54350.0,54347.0,0.147201]
[1725816601960,0.002,54350.0,54346.0,0.296036]
[1725816602183,0.002,54350.0,54349.0,0.441589]
[1725816602440,0.002,54350.0,54349.0,0.809882]
[1725816602656,0.002,54350.0,54349.0,0.895582]
[1725816603808,0.247175,54357.0,54353.0,0.147185]
[1725816604270,0.1,54357.0,54354.0,0.147183]
[1725816604499,0.1,54358.0,54354.0,0.147183]
[1725816604735,0.247172,54358.0,54354.0,0.147183]
[1725816605197,0.008,54357.0,54354.0,0.147183]
[1725816605428,0.013,54357.0,54354.0,0.147183]
[1725816605652,0.013,54357.0,54355.0,0.0739]
[1725816605866,0.013,54357.0,54354.0,0.147183]
[1725816606125,0.147175,54357.0,54353.0,0.002]
[1725816606340,0.24035096,54360.0,54353.0,0.149183]
[1725816606562,0.147174,54358.0,54353.0,0.148183]
[1725816606780,0.147174,54358.0,54353.0,0.147183]
[1725816606995,0.152174,54358.0,54354.0,0.001]
[1725816607456,0.156174,54358.0,54354.0,0.001]
[1725816607676,0.156174,54358.0,54353.0,0.147183]
[1725816607677,0.147174,54358.0,54353.0,0.147183]
[1725816607888,0.152174,54358.0,54353.0,0.148183]
[1725816608098,0.1,54357.0,54353.0,0.148183]
[1725816608339,0.1,54357.0,54353.0,0.149183]
[1725816608830,0.1,54357.0,54353.0,0.148183]
[1725816609544,0.1,54357.0,54353.0,0.147183]
[1725816609767,0.247175,54357.0,54353.0,0.147183]
[1725816610008,0.248175,54357.0,54353.0,0.148183]
[1725816610244,0.147178,54356.0,54353.0,0.001]
[1725816610481,0.147178,54356.0,54354.0,0.001]
[1725816610711,0.101,54357.0,54354.0,0.001]
[1725816610949,0.147178,54356.0,54353.0,0.001]
[1725816611228,0.1,54356.0,54349.0,0.1596]
[1725816611472,0.147184,54354.0,54353.0,0.001]
[1725816611699,0.147184,54354.0,54349.0,0.221095]
[1725816613683,0.14719,54352.0,54349.0,0.075528]
[1725816613892,0.147186,54353.0,54349.0,0.222723]
[1725816616168,0.147186,54353.0,54349.0,0.147195]
[1725816616432,0.152186,54353.0,54349.0,0.147195]
[1725816616639,0.147186,54353.0,54349.0,0.147195]
[1725816616878,0.150186,54353.0,54349.0,0.147195]
[1725816617088,0.147186,54353.0,54349.0,0.147195]
[1725816617314,0.147191,54351.0,54347.0,0.147201]
[1725816617546,0.151188,54353.0,54347.0,0.147201]
[1725816617770,0.151188,54353.0,54345.0,0.0857]
[1725816617771,0.151188,54353.0,54348.0,0.147198]
[1725816617988,0.154188,54353.0,54348.0,0.147198]
[1725816618204,0.147188,54352.0,54348.0,0.147198]
[1725816619604,0.007,54353.0,54348.0,0.147198]
[1725816620077,0.147186,54353.0,54348.0,0.147198]
[1725816620758,0.147189,54352.0,54348.0,0.147198]